fUST/lending_fUST_20251012
["ID","MTS","AMOUNT","RATE_DAILY","PERIOD"]
[390980809,1760261439428,-500.0,0.00023408,2]
[390980810,1760261439438,-500.0,0.00023408,2]
[390980811,1760261439447,-500.0,0.00023408,2]
[390980812,1760261439459,-500.0,0.00023408,2]
[390980813,1760261439469,-587.74,0.00023408,2]
[390980814,1760261439478,-500.0,0.00023408,2]
[390980815,1760261439488,-500.0,0.00023408,2]
[390980816,1760261439498,-500.0,0.00023408,2]
[390980817,1760261439507,-500.0,0.00023408,2]
[390980818,1760261439517,-500.0,0.00023408,2]
[390980819,1760261439527,-321.4,0.00023408,2]
[390980820,1760261439538,-500.0,0.00023408,2]
[390980821,1760261439547,-500.0,0.00023408,2]
[390980822,1760261439556,-500.0,0.00023408,2]
[390980823,1760261439565,-560.62632902,0.00023408,2]
[390980824,1760261439575,-500.0,0.00023408,2]
[390980825,1760261439585,-256.18,0.00023408,2]
[390980826,1760261439751,-500.0,0.00023408,2]
[390980827,1760261439761,-321.09,0.00023408,2]
[390980828,1760261439771,-500.0,0.00023408,2]
[390980829,1760261439781,-343.6,0.00023408,2]
[390980830,1760261439791,-500.0,0.00023408,2]
[390980831,1760261439800,-500.0,0.00023408,2]
[390980832,1760261439809,-195.54,0.00023408,2]
[390980833,1760261439819,-500.0,0.00023408,2]
[390980834,1760261439827,-500.0,0.00023408,2]
[390980835,1760261439839,-500.0,0.00023408,2]
[390980836,1760261439849,-504.79304014,0.00023408,2]
[390980837,1760261439859,-500.0,0.00023408,2]
[390980838,1760261439868,-500.0,0.00023408,2]
[390980839,1760261439877,-159.33052687,0.00023408,2]
[390980840,1760261439886,-500.0,0.00023408,2]
[390980841,1760261439897,-500.0,0.00023408,2]
[390980842,1760261439908,-500.0,0.00023408,2]
[390980843,1760261439917,-500.0,0.00023408,2]
[390980844,1760261439927,-500.0,0.00023408,2]
[390980845,1760261439937,-500.0,0.00023408,2]
[390980846,1760261439948,-500.0,0.00023408,2]
[390980847,1760261439957,-500.0,0.00023408,2]
[390980848,1760261439966,-500.0,0.00023408,2]
[390980849,1760261439975,-500.0,0.00023408,2]
[390980850,1760261439984,-500.0,0.00023408,2]
[390980851,1760261439993,-500.0,0.00023408,2]
[390980852,1760261440002,-500.0,0.00023408,2]
[390980853,1760261440011,-155.41084537,0.00023408,2]
[390980854,1760261440019,-500.0,0.00023408,2]
[390980855,1760261440028,-500.0,0.00023408,2]
[390980856,1760261440038,-500.0,0.00023408,2]
[390980857,1760261440047,-500.0,0.00023408,2]
[390980858,1760261440056,-500.0,0.00023408,2]
[390980859,1760261440065,-500.40576881,0.00023408,2]
[390980860,1760261440074,-153.52641508,0.00023408,2]
[390980861,1760261440083,-154.37356518,0.00023408,2]
[390980862,1760261440094,-151.0,0.00023408,2]
[390980863,1760261440103,-546.2140192,0.00023408,2]
[390980864,1760261440112,-299.71228789,0.00023408,2]
[390980865,1760261440121,-151.0,0.00023408,2]
[390980866,1760261440130,-152.68237417,0.00023408,2]
[390980867,1760261440139,-500.0,0.00023408,2]
[390980869,1760261440148,-199.63242529,0.00023408,2]
[390980870,1760261440157,-500.0,0.00023408,2]
[390980871,1760261440166,-500.0,0.00023409,2]
[390980872,1760261440174,-734.44,0.00023409,2]
[390980873,1760261440183,-734.44,0.00023409,2]
[390980874,1760261440192,-734.44,0.00023409,2]
[390980875,1760261440201,-734.44,0.00023409,2]
[390980876,1760261440210,-734.44,0.00023409,2]
[390980877,1760261440219,-734.44,0.00023409,2]
[390980878,1760261440228,-734.44,0.00023409,2]
[390980879,1760261440237,-734.44,0.00023409,2]
[390980880,1760261440246,-734.44,0.00023409,2]
[390980881,1760261440256,-734.44,0.00023409,2]
[390980882,1760261440265,-734.44,0.00023409,2]
[390980884,1760261440274,-734.44,0.00023409,2]
[390980885,1760261440282,-734.44,0.00023409,2]
[390980887,1760261440291,-734.44,0.00023409,2]
[390980889,1760261440302,-734.44,0.00023409,2]
[390980890,1760261440311,-734.44,0.00023409,2]
[390980891,1760261440320,-734.44,0.00023409,2]
[390980892,1760261440329,-734.44,0.00023409,2]
[390980893,1760261440341,-734.44,0.00023409,2]
[390980894,1760261440350,-734.44,0.00023409,2]
[390980895,1760261440359,-734.44,0.00023409,2]
[390980896,1760261440368,-734.44,0.00023409,2]
[390980897,1760261440377,-734.44,0.00023409,2]
[390980898,1760261440387,-734.66,0.00023409,2]
[390980899,1760261440396,-500.0,0.00023409,2]
[390980900,1760261440405,-587.48,0.00023409,2]
[390980901,1760261440414,-500.0,0.00023409,2]
[390980902,1760261440424,-500.0,0.00023409,2]
[390980903,1760261440433,-500.0,0.00023409,2]
[390980904,1760261440442,-500.0,0.00023409,2]
[390980905,1760261440452,-500.0,0.00023409,2]
[390980906,1760261440468,-500.0,0.00023409,2]
[390980907,1760261440478,-500.0,0.00023409,2]
[390980909,1760261440486,-500.0,0.00023409,2]
[390980910,1760261440496,-500.0,0.00023409,2]
[390980911,1760261440507,-461.74000001,0.00023409,2]
[390980912,1760261440516,-500.0,0.00023409,2]
[390980913,1760261440526,-500.0,0.00023409,2]
[390980914,1760261440536,-500.0,0.00023409,2]
[390980915,1760261440546,-548.51,0.00023409,2]
[390980916,1760261440556,-500.0,0.00023409,2]
[390980917,1760261440566,-350.29000757,0.00023409,2]
[390980918,1760261440575,-500.0,0.00023409,2]
[390980919,1760261440585,-500.0,0.00023409,2]
[390980920,1760261440597,-500.0,0.00023409,2]
[390980921,1760261440607,-500.0,0.00023409,2]
[390980922,1760261440616,-500.0,0.00023409,2]
[390980923,1760261440626,-406.97,0.00023409,2]
[390980924,1760261440636,-500.0,0.00023409,2]
[390980925,1760261440646,-500.0,0.00023409,2]
[390980926,1760261440656,-500.0,0.00023409,2]
[390980927,1760261440665,-500.0,0.00023409,2]
[390980928,1760261440675,-500.0,0.00023409,2]
[390980929,1760261440685,-392.28,0.00023409,2]
[390980930,1760261440695,-648.12,0.00023409,2]
[390980931,1760261440704,-500.0,0.00023409,2]
[390980932,1760261440714,-500.0,0.00023409,2]
[390980933,1760261440723,-500.0,0.00023409,2]
[390980934,1760261440732,-500.0,0.00023409,2]
[390980935,1760261440742,-263.58,0.00023409,2]
[390980936,1760261440752,-500.0,0.00023409,2]
[390980937,1760261440761,-629.34,0.00023409,2]
[390980938,1760261440770,-500.0,0.00023409,2]
[390980939,1760261440780,-304.08,0.00023409,2]
[390980940,1760261440789,-2248.25,0.00023412,2]
[390980941,1760261440799,-500.0,0.00023413,2]
[390980942,1760261440808,-500.0,0.00023413,2]
[390980943,1760261440818,-500.0,0.00023413,2]
[390980944,1760261440827,-500.0,0.00023413,2]
[390980945,1760261440838,-500.0,0.00023413,2]
[390980946,1760261440847,-500.0,0.00023413,2]
[390980947,1760261440856,-500.0,0.00023413,2]
[390980948,1760261440865,-500.0,0.00023413,2]
[390980949,1760261440875,-500.0,0.00023413,2]
[390980950,1760261440883,-500.0,0.00023413,2]
[390980951,1760261440892,-500.0,0.00023413,2]
[390980952,1760261440902,-524.90686667,0.00023413,2]
[390980953,1760261440910,-546.46,0.00023413,2]
[390980954,1760261440919,-500.0,0.00023413,2]
[390980955,1760261440928,-500.0,0.00023413,2]
[390980956,1760261440937,-500.0,0.00023413,2]
[390980957,1760261440946,-500.0,0.00023413,2]
[390980958,1760261440955,-500.0,0.00023413,2]
[390980959,1760261440964,-500.0,0.00023413,2]
[390980960,1760261440973,-500.0,0.00023413,2]
[390980961,1760261440981,-500.0,0.00023413,2]
[390980962,1760261440991,-241.28,0.00023413,2]
[390980963,1760261440999,-500.0,0.00023413,2]
[390980964,1760261441009,-500.0,0.00023413,2]
[390980965,1760261441017,-500.0,0.00023413,2]
[390980966,1760261441026,-500.0,0.00023413,2]
[390980967,1760261441035,-500.0,0.00023413,2]
[390980968,1760261441044,-500.0,0.00023413,2]
[390980969,1760261441053,-500.0,0.00023413,2]
[390980970,1760261441062,-500.0,0.00023413,2]
[390980971,1760261441071,-291.39,0.00023413,2]
[390980972,1760261441079,-500.0,0.00023413,2]
[390980973,1760261441089,-322.82,0.00023413,2]
[390980974,1760261441098,-500.0,0.00023413,2]
[390980975,1760261441107,-500.0,0.00023413,2]
[390980976,1760261441116,-500.0,0.00023413,2]
[390980977,1760261441125,-304.7,0.00023413,2]
[390980978,1760261441135,-500.0,0.00023413,2]
[390980979,1760261441144,-480.46,0.00023413,2]
[390980980,1760261441154,-518.58,0.00023413,2]
[390980981,1760261441167,-500.0,0.00023413,2]
[390980982,1760261441176,-500.0,0.00023414,2]
[390980983,1760261441185,-500.0,0.00023414,2]
[390980984,1760261441194,-500.0,0.00023414,2]
[390980985,1760261441203,-500.0,0.00023414,2]
[390980986,1760261441212,-500.0,0.00023414,2]
[390980987,1760261441221,-500.0,0.00023414,2]
[390980988,1760261441230,-500.0,0.00023414,2]
[390980989,1760261441238,-500.0,0.00023414,2]
[390980990,1760261441248,-500.0,0.00023414,2]
[390980991,1760261441257,-500.0,0.00023414,2]
[390980992,1760261441266,-500.0,0.00023414,2]
[390980993,1760261441275,-500.0,0.00023414,2]
[390980994,1760261441285,-500.0,0.00023414,2]
[390980995,1760261441294,-500.0,0.00023414,2]
[390980996,1760261441304,-500.0,0.00023414,2]
[390980997,1760261441313,-500.0,0.00023414,2]
[390980998,1760261441322,-500.0,0.00023414,2]
[390980999,1760261441331,-500.0,0.00023414,2]
[390981000,1760261441341,-500.0,0.00023414,2]
[390981001,1760261441350,-500.0,0.00023414,2]
[390981002,1760261441359,-500.0,0.00023414,2]
[390981003,1760261441368,-500.0,0.00023414,2]
[390981004,1760261441377,-493.06370054,0.00023414,2]
[390981005,1760261441386,-500.0,0.00023414,2]
[390981006,1760261441396,-500.0,0.00023414,2]
[390981007,1760261441405,-271.17,0.00023414,2]
[390981008,1760261441415,-500.0,0.00023414,2]
[390981009,1760261441424,-500.0,0.00023414,2]
[390981010,1760261441433,-500.0,0.00023414,2]
[390981011,1760261441442,-195.15275097,0.00023414,2]
[390981012,1760261441451,-23.09357189,0.00023454,2]
[390981022,1760261446715,-500.0,0.00022726,2]
[390981023,1760261446726,-500.0,0.00022726,2]
[390981024,1760261446735,-500.0,0.00022726,2]
[390981025,1760261446744,-339.73616189,0.00022726,2]
[390981026,1760261446753,-151.0,0.00023408,2]
[390981027,1760261446762,-2225.15642811,0.00023454,2]
[390981028,1760261446771,-500.0,0.00023455,2]
[390981029,1760261446780,-500.0,0.00023455,2]
[390981030,1760261446789,-223.83,0.00023455,2]
[390981031,1760261446798,-500.0,0.00023455,2]
[390981032,1760261446807,-500.0,0.00023455,2]
[390981033,1760261446815,-302.02,0.00023455,2]
[390981034,1760261446825,-500.0,0.00023455,2]
[390981035,1760261446833,-388.4,0.00023455,2]
[390981036,1760261446844,-500.0,0.00023455,2]
[390981037,1760261446856,-500.0,0.00023455,2]
[390981038,1760261446865,-500.0,0.00023455,2]
[390981039,1760261446874,-500.0,0.00023455,2]
[390981040,1760261446883,-500.0,0.00023455,2]
[390981041,1760261446892,-500.0,0.00023455,2]
[390981042,1760261446901,-500.0,0.00023455,2]
[390981043,1760261446910,-500.0,0.00023455,2]
[390981044,1760261446919,-500.0,0.00023455,2]
[390981045,1760261446929,-202.9582812,0.00023463,2]
[390981046,1760261446938,-198.54520826,0.00023463,2]
[390981047,1760261446947,-500.0,0.00023463,2]
[390981048,1760261446956,-500.0,0.00023463,2]
[390981049,1760261446965,-151.0,0.00023463,2]
[390981050,1760261446975,-500.0,0.00023468,2]
[390981051,1760261446984,-500.0,0.00023468,2]
[390981052,1760261446993,-500.0,0.00023468,2]
[390981053,1760261447002,-500.0,0.00023468,2]
[390981054,1760261447011,-500.0,0.00023468,2]
[390981055,1760261447020,-500.0,0.00023468,2]
[390981056,1760261447029,-500.0,0.00023468,2]
[390981057,1760261447039,-638.12907234,0.00023468,2]
[390981058,1760261447049,-500.0,0.00023473,2]
[390981059,1760261447059,-500.2607671,0.00023473,2]
[390981060,1760261447068,-200.37215413,0.00023473,2]
[390981061,1760261447078,-183.71619394,0.00023473,2]
[390981062,1760261447088,-500.0,0.00023473,2]
[390981063,1760261447098,-500.0,0.00023473,2]
[390981064,1760261447108,-571.11934018,0.00023473,2]
[390981065,1760261447118,-500.0,0.00023473,2]
[390981066,1760261447127,-342.56588263,0.00023473,2]
[390981067,1760261447136,-562.33057242,0.00023473,2]
[390981068,1760261447146,-417.20128313,0.00023473,2]
[390981069,1760261447156,-500.0,0.00023518,2]
[390981070,1760261447165,-500.0,0.00023518,2]
[390981071,1760261447175,-151.0,0.00023518,2]
[390981072,1760261447184,-500.0,0.00023532,2]
[390981073,1760261447193,-500.0,0.00023572,2]
[390981074,1760261447202,-641.14722921,0.00023572,2]
[390981075,1760261447211,-221.93345763,0.00023572,2]
[390981076,1760261447220,-173.79828642,0.0002358,2]
[390981077,1760261447229,-500.0,0.00023615,2]
[390981078,1760261447356,-1563.0,0.00023615,2]
[390981079,1760261447365,-500.0,0.00023627,2]
[390981080,1760261447374,-2166.73804995,0.00023637,2]
[390981081,1760261447385,-1852.41000798,0.00023637,2]
[390981082,1760261447394,-1563.0,0.00023643,2]
[390981083,1760261447403,-500.0,0.00023682,2]
[390981084,1760261447412,-500.0,0.00023732,2]
[390981085,1760261447422,-500.0,0.00023732,2]
[390981086,1760261447431,-500.0,0.00023732,2]
[390981087,1760261447439,-500.0,0.00023732,2]
[390981088,1760261447448,-500.0,0.00023732,2]
[390981089,1760261447460,-500.0,0.00023732,2]
[390981090,1760261447470,-500.0,0.00023732,2]
[390981091,1760261447479,-500.0,0.00023732,2]
[390981092,1760261447488,-500.0,0.00023732,2]
[390981093,1760261447498,-505.824603,0.00023732,2]
[390981094,1760261447507,-500.0,0.00023732,5]
[390981095,1760261447518,-50713.76566542,0.00023732,2]
[390981096,1760261447530,-94900.0,0.00023732,2]
[390981097,1760261447543,-2209.60907999,0.00023732,2]
[390981099,1760261879966,210.43,0.00015225,2]
[390981100,1760261918091,168.4110056,0.00030239,120]
[390981105,1760262384928,233.90658134,0.00021607,2]
[390981106,1760262386728,421.03184641,0.00021607,2]
[390981107,1760262388357,747.75255923,0.00021607,2]
[390981108,1760262426097,-261.0,0.00022,60]
[390981109,1760262426260,-214.31939427,0.00022,2]
[390981110,1760262426281,-325.78285676,0.00022573,2]
[390981111,1760262537200,177.4,0.0003024,120]
[390981112,1760262581004,432.07664622,0.00021607,2]
[390981185,1760262637692,-1779.08985846,0.00022573,2]
[390981186,1760262637701,-1126.34571974,0.00022573,2]
[390981187,1760262637710,-160.0,0.00022599,2]
[390981188,1760262637720,-151.0,0.000226,9]
[390981189,1760262637729,-246.46730341,0.000226,2]
[390981190,1760262637738,-207.93167528,0.00022612,2]
[390981191,1760262637747,-1200.0,0.00022615,2]
[390981192,1760262637755,-300.0,0.00022615,2]
[390981193,1760262637765,-1200.0,0.00022615,2]
[390981194,1760262637774,-377.76,0.00022616,3]
[390981195,1760262637783,-188.88,0.00022616,3]
[390981196,1760262637793,-566.68,0.00022616,3]
[390981197,1760262637802,-152.49,0.00022616,3]
[390981198,1760262637814,-457.47,0.00022616,3]
[390981199,1760262637824,-500.0,0.00022624,2]
[390981200,1760262637834,-500.0,0.00022624,2]
[390981201,1760262637844,-348.6,0.00022624,2]
[390981202,1760262637854,-500.0,0.00022624,2]
[390981203,1760262637863,-500.0,0.00022624,2]
[390981204,1760262637872,-500.0,0.00022624,2]
[390981205,1760262637881,-500.0,0.00022624,2]
[390981207,1760262637890,-500.0,0.00022624,2]
[390981208,1760262637901,-500.0,0.00022624,2]
[390981210,1760262637910,-500.0,0.00022624,2]
[390981212,1760262637919,-375.94,0.00022624,2]
[390981213,1760262637928,-500.0,0.00022624,2]
[390981214,1760262637937,-500.0,0.00022624,2]
[390981215,1760262637946,-500.0,0.00022624,2]
[390981216,1760262637955,-500.0,0.00022625,2]
[390981217,1760262637964,-500.0,0.00022625,2]
[390981218,1760262637973,-500.0,0.00022625,2]
[390981219,1760262637982,-560.87792972,0.00022625,2]
[390981220,1760262637991,-618.51,0.00022625,2]
[390981221,1760262638000,-500.0,0.00022625,2]
[390981222,1760262638009,-500.0,0.00022625,2]
[390981223,1760262638018,-604.58176322,0.00022625,2]
[390981224,1760262638027,-500.0,0.00022625,2]
[390981225,1760262638036,-177.79,0.00022625,2]
[390981226,1760262638046,-480.81443187,0.00022625,2]
[390981227,1760262638056,-500.0,0.00022625,2]
[390981228,1760262638066,-500.0,0.00022625,2]
[390981229,1760262638076,-500.0,0.00022625,2]
[390981230,1760262638085,-500.7,0.00022625,2]
[390981231,1760262638095,-500.0,0.00022625,2]
[390981232,1760262638104,-500.0,0.00022625,2]
[390981233,1760262638115,-500.0,0.00022625,2]
[390981234,1760262638124,-500.0,0.00022625,2]
[390981235,1760262638134,-500.0,0.00022625,2]
[390981236,1760262638144,-500.0,0.00022625,2]
[390981237,1760262638153,-500.0,0.00022625,2]
[390981238,1760262638164,-501.00340677,0.00022625,2]
[390981239,1760262638174,-500.0,0.00022625,2]
[390981240,1760262638183,-500.0,0.00022625,2]
[390981241,1760262638192,-500.0,0.00022625,2]
[390981242,1760262638202,-500.0,0.00022625,2]
[390981243,1760262638212,-636.43,0.00022625,2]
[390981244,1760262638221,-500.0,0.00022625,2]
[390981245,1760262638231,-502.07683611,0.00022625,2]
[390981246,1760262638242,-500.0,0.00022625,2]
[390981247,1760262638252,-500.0,0.00022625,2]
[390981248,1760262638261,-500.0,0.00022625,2]
[390981249,1760262638271,-500.0,0.00022625,2]
[390981250,1760262638280,-500.0,0.00022625,2]
[390981251,1760262638289,-279.77,0.00022625,2]
[390981252,1760262638299,-503.63316883,0.00022625,2]
[390981253,1760262638309,-500.0,0.00022625,2]
[390981254,1760262638318,-500.0,0.00022625,2]
[390981255,1760262638327,-500.0,0.00022625,2]
[390981256,1760262638336,-501.09754199,0.00022625,2]
[390981257,1760262638346,-500.0,0.00022625,2]
[390981258,1760262638355,-500.0,0.00022625,2]
[390981259,1760262638365,-500.0,0.00022625,2]
[390981260,1760262638375,-500.0,0.00022625,2]
[390981261,1760262638384,-500.0,0.00022625,2]
[390981262,1760262638394,-500.0,0.00022625,2]
[390981263,1760262638405,-300.0,0.00022625,2]
[390981264,1760262638414,-500.0,0.00022625,2]
[390981265,1760262638423,-500.0,0.00022625,2]
[390981266,1760262638433,-1000.0,0.00022625,2]
[390981267,1760262638442,-382.34981344,0.00022625,2]
[390981268,1760262638451,-500.0,0.00022625,2]
[390981269,1760262638461,-405.46356867,0.00022625,2]
[390981270,1760262638470,-192.93914445,0.00022625,2]
[390981271,1760262638479,-287.862899,0.00022625,2]
[390981272,1760262638488,-209.79860153,0.00022625,2]
[390981273,1760262638497,-500.0,0.00022625,2]
[390981274,1760262638506,-500.0,0.00022625,2]
[390981275,1760262638514,-500.0,0.00022625,2]
[390981276,1760262638523,-500.0,0.00022625,2]
[390981277,1760262638532,-213.49048399,0.00022625,2]
[390981278,1760262638541,-500.0,0.00022626,5]
[390981279,1760262638551,-4510.92401309,0.00022626,2]
[390981280,1760262638563,-7849.49958601,0.00022626,2]
[390981281,1760262638574,-22802.81858986,0.00022626,2]
[390981282,1760262638584,-1036.42,0.00022626,2]
[390981283,1760262638596,-1279.02547072,0.00022626,2]
[390981308,1760262645786,-229.84,0.00022616,10]
[390981309,1760262645795,-500.0,0.00022624,2]
[390981310,1760262645805,-7912.70000002,0.00022626,2]
[390981313,1760262783416,591.07482244,0.0003024,120]
[390981325,1760263022214,465.309347,0.00013699,2]
[390981326,1760263022406,465.309347,0.00020187,2]
[390981331,1760263389819,6708.91988282,0.00030242,120]
[390981332,1760263406339,2885.39,0.00030242,60]
[390981334,1760263410721,187.569114,0.0002146,2]
[390981337,1760263628136,-819.95598039,0.00022023,2]
[390981338,1760263726504,150.0,0.00018056,2]
[390981339,1760263726914,150.0,0.00018916,2]
[390981340,1760263727321,150.0,0.00019776,2]
[390981341,1760263789109,294.33250029,0.00021278,2]
[390981342,1760263790789,336.04362034,0.00021278,2]
[390981377,1760263831941,-211.24982631,0.00021923,4]
[390981378,1760263831950,-1200.0,0.00022022,2]
[390981379,1760263831960,-3797.04401961,0.00022023,2]
[390981380,1760263831969,-215.26106619,0.00022023,2]
[390981381,1760263831978,-398.15596219,0.000221,2]
[390981382,1760263831987,-300.0,0.00022296,2]
[390981383,1760263831997,-4617.0,0.00022297,2]
[390981384,1760263832006,-1368.99125708,0.00022334,2]
[390981385,1760263832016,-301.73513982,0.00022398,2]
[390981386,1760263832026,-600.0,0.00022436,2]
[390981387,1760263832035,-750.89714648,0.00022516,2]
[390981388,1760263832045,-191.54,0.00022516,10]
[390981389,1760263832054,-267.64486941,0.00022525,2]
[390981390,1760263832063,-556.61604708,0.00022525,2]
[390981391,1760263832072,-500.0,0.00022525,2]
[390981392,1760263832082,-418.510783,0.00022525,2]
[390981393,1760263832091,-2022.74220041,0.00022526,2]
[390981394,1760263832101,-50269.94367733,0.00022526,2]
[390981396,1760263832114,-416.1555299,0.00022526,2]
[390981479,1760263839909,-159.61,0.00022516,10]
[390981481,1760263839922,-2258.8934203,0.00022526,2]
[390981483,1760263839965,-453.0,0.00022526,2]
[390981484,1760263840020,-1724.58510209,0.00022526,2]
[390981504,1760263855551,150.0,0.00018004,2]
[390981505,1760263855974,150.0,0.00018861,2]
[390981509,1760264207924,529.0,0.00022516,120]
[390981510,1760264208211,536.0,0.00022516,120]
[390981511,1760264208387,529.0,0.00022506,120]
[390981512,1760264208675,536.0,0.00022506,120]
[390981513,1760264208839,529.0,0.00022496,120]
[390981514,1760264209118,536.0,0.00022496,120]
[390981515,1760264209286,529.0,0.0002579,120]
[390981516,1760264209571,536.0,0.0002579,120]
[390981517,1760264209736,529.0,0.0002578,120]
[390981518,1760264210052,536.0,0.0002578,120]
[390981519,1760264210200,529.0,0.0002577,120]
[390981520,1760264210530,536.0,0.0002577,120]
[390981521,1760264214816,500.0,0.00024724,120]
[390981522,1760264215635,500.0,0.00024724,120]
[390981523,1760264216393,500.0,0.00024724,120]
[390981524,1760264217218,500.0,0.00024724,120]
[390981525,1760264217662,1281.03715976,0.0003024,60]
[390981526,1760264218042,500.0,0.00024724,120]
[390981527,1760264218810,500.0,0.00024724,120]
[390981528,1760264219620,500.0,0.00024724,120]
[390981529,1760264220432,500.0,0.00024724,120]
[390981530,1760264221199,500.0,0.00024724,120]
[390981531,1760264222040,500.0,0.00024724,120]
[390981532,1760264222854,500.0,0.00024724,120]
[390981533,1760264223847,500.0,0.00024724,120]
[390981534,1760264224435,641.83,0.00024724,120]
[390981535,1760264227742,160.0,0.0003024,60]
[390981536,1760264228594,160.0,0.0003024,60]
[390981537,1760264287312,160.0,0.00030259,60]
[390981543,1760264346649,160.0,0.00030259,60]
[390981544,1760264369366,1000.0,0.00021491,2]
[390981545,1760264403159,509.0,0.00026,120]
[390981546,1760264403193,1153.86,0.00026,120]
[390981548,1760264407011,359.1,0.00027397,120]
[390981550,1760264544332,174.0,0.00023769,120]
[390981551,1760264545556,174.0,0.00024958,120]
[390981552,1760264549189,160.0,0.00030259,60]
[390981553,1760264569316,212.0,0.00022514,120]
[390981554,1760264569752,212.0,0.00022504,120]
[390981555,1760264570218,212.0,0.00022494,120]
[390981556,1760264570671,212.0,0.0002592,120]
[390981558,1760264571126,212.0,0.0002591,120]
[390981559,1760264571597,212.0,0.000259,120]
[390981560,1760264635373,182.236604,0.00021638,2]
[390981561,1760264635439,182.236604,0.00021638,41]
[390981562,1760264635644,182.236604,0.00021638,80]
[390981563,1760264635860,182.236604,0.00021638,119]
[390981567,1760264756279,666.0,0.00021489,2]
[390981568,1760264783989,160.0,0.00030267,60]
[390981569,1760264851094,-1042.79569165,0.00022048,2]
[390981570,1760264854879,1683.52,0.00021799,2]
[390981572,1760264894650,188.0,0.0002,120]
[390981573,1760264920699,418.82189001,0.00022372,120]
[390981574,1760264928922,150.5,0.00022513,120]
[390981575,1760264929393,214.0,0.00022513,120]
[390981576,1760264929421,150.5,0.00022503,120]
[390981577,1760264929722,214.0,0.00022503,120]
[390981578,1760264929813,150.5,0.00022493,120]
[390981579,1760264930166,214.0,0.00022493,120]
[390981580,1760264930269,150.5,0.0002477,120]
[390981581,1760264930611,214.0,0.0002477,120]
[390981582,1760264930852,249.72,0.0002476,120]
[390981583,1760264931051,214.0,0.0002476,120]
[390981584,1760264931480,214.0,0.0002475,120]
[390981585,1760264931957,214.0,0.00026238,120]
[390981586,1760264932403,214.0,0.00026228,120]
[390981614,1760265032295,-520.20430835,0.00022048,2]
[390981615,1760265032305,-224.73551832,0.00022048,2]
[390981616,1760265032314,-626.0,0.0002242,2]
[390981617,1760265032323,-500.59809766,0.00022423,2]
[390981618,1760265032333,-1809.70428208,0.00022423,2]
[390981619,1760265032342,-1125.26225406,0.00022426,2]
[390981620,1760265032351,-600.0,0.00022436,2]
[390981621,1760265032360,-1563.0,0.00022483,2]
[390981622,1760265032369,-798.09,0.00022503,10]
[390981624,1760265032378,-18603.8837,0.00022509,2]
[390981626,1760265032387,-151.0,0.00022509,2]
[390981628,1760265032396,-151.0,0.00022509,2]
[390981629,1760265032405,-151.0,0.00022509,2]